{"text_format":"1","workbook":"xlsx","n_sheets":2,"sheets":["юноши","девуш"],"not_rendered":{"charts":0,"images":1,"macros":1,"external_links":1,"defined_names":2,"comments":0,"pivot_tables":0},"unopened":[],"bounds":{"document_bytes":16777216,"sheet_cells":100000,"rows_first":2000,"rows_last":500,"rows_between":2000,"halvings":0,"cell_chars":16384,"cell_head_chars":4096},"cells_cut":0,"cells_raw":0,"read":"whole","date_system":"1900"}

{"sheet":"юноши","index":0,"n_rows":51,"n_cols":60,"rows_kept":51,"cut":false,"hidden":false,"merged":[[45,0,45,1],[46,0,46,1],[49,0,50,1],[49,22,50,41],[3,34,3,37],[3,38,3,41],[49,46,50,55],[3,42,3,45],[3,46,3,49],[3,50,3,53],[3,54,3,57],[0,0,0,59],[1,20,1,59],[2,2,2,19],[2,20,2,59],[3,0,4,0],[3,1,4,1],[3,2,3,5],[3,6,3,9],[3,10,3,13],[3,14,3,17],[3,58,4,58],[3,59,4,59],[3,18,3,21],[3,22,3,25],[3,26,3,29],[3,30,3,33]]}
["ВСЕРОССИЙСКАЯ ФЕДЕРАЦИЯ САМБО"]
[null,null,"ПРОТОКОЛ КОМАНДНОГО ПЕРВЕНСТВА",null,null,null,null,null,null,null,null,null,null,null,null,null,null,null,null,null,{"$f":"[1]реквизиты!$A$2","v":"Краевые соревнования по самбо в зачёт ХХХIХ спартакиады спортивных школ среди юношей и девушек 2003-2004 г.р."}]
[null,null,"ЮНОШИ",null,null,null,null,null,null,null,null,null,null,null,null,null,null,null,null,null,{"$f":"[1]реквизиты!$A$3","v":"01-03 марта 2019г.                                              г.Бийск"}]
["№пп","Команда",42,null,null,null,46,null,null,null,50,null,null,null,55,null,null,null,60,null,null,null,66,null,null,null,72,null,null,null,78,null,null,null,84,null,null,null,"св84",null,null,null,null,null,null,null,null,null,null,null,"Вcего мест",null,null,null,"Очки",null,null,null,"Всего","Место"]
[null,null,1,2,3,5,1,2,3,5,1,2,3,5,1,2,3,5,1,2,3,5,1,2,3,5,1,2,3,5,1,2,3,5,1,2,3,5,1,2,3,5,1,2,3,5,1,2,3,5,1,2,3,5,"1м","2м","3м","5м"]
[1,"Бийск СШОР№3",1,1,null,null,null,1,null,null,null,1,1,null,1,null,null,null,null,1,null,null,1,null,null,null,null,1,null,null,null,null,null,null,null,null,null,null,null,null,1,null,null,null,null,null,null,null,null,null,{"$f":"SUM(C6,G6,K6,O6,S6,W6,AA6,AE6,AI6,AM6,AQ6,AU6)","v":3},{"$f":"SUM(D6,H6,L6,P6,T6,X6,AB6,AF6,AJ6,AN6,AR6,AV6)","v":5},{"$f":"SUM(E6,I6,M6,Q6,U6,Y6,AC6,AG6,AK6,AO6,AS6,AW6)","v":2},{"$f":"SUM(F6,J6,Z6,AH6,N6,R6,V6,AD6,AL6,AP6,AT6,AX6)","v":0},{"$f":"SUM(AY6*7)","v":21},{"$f":"PRODUCT(AZ6*5)","v":25},{"$f":"PRODUCT(BA6*3)","v":6},{"$f":"PRODUCT(BB6*1)","v":0},{"$f":"SUM(BC6:BF6)","v":52},"1"]
[2,"Барнаул СШОР \"Олимпия\"",null,null,null,null,null,null,null,null,null,null,null,1,null,null,null,null,null,null,null,1,null,null,null,null,1,null,null,null,null,1,null,null,1,null,null,null,1,null,null,null,null,null,null,null,null,null,null,null,{"$f":"SUM(C7,G7,K7,O7,S7,W7,AA7,AE7,AI7,AM7,AQ7,AU7)","v":3},{"$f":"SUM(D7,H7,L7,P7,T7,X7,AB7,AF7,AJ7,AN7,AR7,AV7)","v":1},{"$f":"SUM(E7,I7,M7,Q7,U7,Y7,AC7,AG7,AK7,AO7,AS7,AW7)","v":0},{"$f":"SUM(F7,J7,Z7,AH7,N7,R7,V7,AD7,AL7,AP7,AT7,AX7)","v":2},{"$f":"SUM(AY7*7)","v":21},{"$f":"PRODUCT(AZ7*5)","v":5},{"$f":"PRODUCT(BA7*3)","v":0},{"$f":"PRODUCT(BB7*1)","v":2},{"$f":"SUM(BC7:BF7)","v":28},"2"]
[3,"Барнаул КДЮСШ",null,null,1,null,null,null,null,null,null,null,null,null,null,null,null,null,1,null,1,null,null,1,1,null,null,null,null,null,null,null,null,null,null,null,null,null,null,null,null,1,null,null,null,null,null,null,null,null,{"$f":"SUM(C8,G8,K8,O8,S8,W8,AA8,AE8,AI8,AM8,AQ8,AU8)","v":1},{"$f":"SUM(D8,H8,L8,P8,T8,X8,AB8,AF8,AJ8,AN8,AR8,AV8)","v":1},{"$f":"SUM(E8,I8,M8,Q8,U8,Y8,AC8,AG8,AK8,AO8,AS8,AW8)","v":3},{"$f":"SUM(F8,J8,Z8,AH8,N8,R8,V8,AD8,AL8,AP8,AT8,AX8)","v":1},{"$f":"SUM(AY8*7)","v":7},{"$f":"PRODUCT(AZ8*5)","v":5},{"$f":"PRODUCT(BA8*3)","v":9},{"$f":"PRODUCT(BB8*1)","v":1},{"$f":"SUM(BC8:BF8)","v":22},"3"]
[4,"Мамонтово",null,null,null,null,null,null,null,null,null,null,null,null,null,null,null,null,null,null,1,null,null,null,null,null,null,null,1,null,1,null,null,null,null,null,null,null,null,null,null,1,null,null,null,null,null,null,null,null,{"$f":"SUM(C9,G9,K9,O9,S9,W9,AA9,AE9,AI9,AM9,AQ9,AU9)","v":1},{"$f":"SUM(D9,H9,L9,P9,T9,X9,AB9,AF9,AJ9,AN9,AR9,AV9)","v":0},{"$f":"SUM(E9,I9,M9,Q9,U9,Y9,AC9,AG9,AK9,AO9,AS9,AW9)","v":2},{"$f":"SUM(F9,J9,Z9,AH9,N9,R9,V9,AD9,AL9,AP9,AT9,AX9)","v":1},{"$f":"SUM(AY9*7)","v":7},{"$f":"PRODUCT(AZ9*5)","v":0},{"$f":"PRODUCT(BA9*3)","v":6},{"$f":"PRODUCT(BB9*1)","v":1},{"$f":"SUM(BC9:BF9)","v":14},"4"]
[5,"Барнаул СШОР\"Спарта\"",null,null,null,null,null,null,null,null,null,null,null,null,null,null,null,1,null,null,null,null,null,null,null,null,null,null,1,1,null,null,1,null,null,null,null,null,null,1,null,null,null,null,null,null,null,null,null,null,{"$f":"SUM(C10,G10,K10,O10,S10,W10,AA10,AE10,AI10,AM10,AQ10,AU10)","v":0},{"$f":"SUM(D10,H10,L10,P10,T10,X10,AB10,AF10,AJ10,AN10,AR10,AV10)","v":1},{"$f":"SUM(E10,I10,M10,Q10,U10,Y10,AC10,AG10,AK10,AO10,AS10,AW10)","v":2},{"$f":"SUM(F10,J10,Z10,AH10,N10,R10,V10,AD10,AL10,AP10,AT10,AX10)","v":2},{"$f":"SUM(AY10*7)","v":0},{"$f":"PRODUCT(AZ10*5)","v":5},{"$f":"PRODUCT(BA10*3)","v":6},{"$f":"PRODUCT(BB10*1)","v":2},{"$f":"SUM(BC10:BF10)","v":13},"6"]
[6,"Славгород",null,null,null,null,null,null,1,null,1,null,null,null,null,null,1,null,null,null,null,null,null,null,null,null,null,null,null,null,null,null,null,null,null,null,null,null,null,null,null,null,null,null,null,null,null,null,null,null,{"$f":"SUM(C11,G11,K11,O11,S11,W11,AA11,AE11,AI11,AM11,AQ11,AU11)","v":1},{"$f":"SUM(D11,H11,L11,P11,T11,X11,AB11,AF11,AJ11,AN11,AR11,AV11)","v":0},{"$f":"SUM(E11,I11,M11,Q11,U11,Y11,AC11,AG11,AK11,AO11,AS11,AW11)","v":2},{"$f":"SUM(F11,J11,Z11,AH11,N11,R11,V11,AD11,AL11,AP11,AT11,AX11)","v":0},{"$f":"SUM(AY11*7)","v":7},{"$f":"PRODUCT(AZ11*5)","v":0},{"$f":"PRODUCT(BA11*3)","v":6},{"$f":"PRODUCT(BB11*1)","v":0},{"$f":"SUM(BC11:BF11)","v":13},"5"]
[7,"Шипуново",null,null,null,null,null,null,1,1,null,null,null,null,null,null,null,null,null,null,null,1,null,null,1,null,null,null,null,null,null,null,null,1,null,null,null,null,null,null,null,null,null,null,null,null,null,null,null,null,{"$f":"SUM(C12,G12,K12,O12,S12,W12,AA12,AE12,AI12,AM12,AQ12,AU12)","v":0},{"$f":"SUM(D12,H12,L12,P12,T12,X12,AB12,AF12,AJ12,AN12,AR12,AV12)","v":0},{"$f":"SUM(E12,I12,M12,Q12,U12,Y12,AC12,AG12,AK12,AO12,AS12,AW12)","v":2},{"$f":"SUM(F12,J12,Z12,AH12,N12,R12,V12,AD12,AL12,AP12,AT12,AX12)","v":3},{"$f":"SUM(AY12*7)","v":0},{"$f":"PRODUCT(AZ12*5)","v":0},{"$f":"PRODUCT(BA12*3)","v":6},{"$f":"PRODUCT(BB12*1)","v":3},{"$f":"SUM(BC12:BF12)","v":9},"7"]
[8,"Тальменка",null,null,null,null,1,null,null,null,null,null,null,null,null,null,null,null,null,null,null,null,null,null,null,null,null,null,null,null,null,null,null,null,null,null,null,null,null,null,null,null,null,null,null,null,null,null,null,null,{"$f":"SUM(C13,G13,K13,O13,S13,W13,AA13,AE13,AI13,AM13,AQ13,AU13)","v":1},{"$f":"SUM(D13,H13,L13,P13,T13,X13,AB13,AF13,AJ13,AN13,AR13,AV13)","v":0},{"$f":"SUM(E13,I13,M13,Q13,U13,Y13,AC13,AG13,AK13,AO13,AS13,AW13)","v":0},{"$f":"SUM(F13,J13,Z13,AH13,N13,R13,V13,AD13,AL13,AP13,AT13,AX13)","v":0},{"$f":"SUM(AY13*7)","v":7},{"$f":"PRODUCT(AZ13*5)","v":0},{"$f":"PRODUCT(BA13*3)","v":0},{"$f":"PRODUCT(BB13*1)","v":0},{"$f":"SUM(BC13:BF13)","v":7},"8"]
[9,"Заринск МАУ \"Спорт\"",null,null,null,null,null,null,null,null,null,null,null,null,null,null,null,null,null,null,null,null,null,null,null,null,null,null,null,null,null,null,null,null,null,1,null,null,null,null,null,null,null,null,null,null,null,null,null,null,{"$f":"SUM(C14,G14,K14,O14,S14,W14,AA14,AE14,AI14,AM14,AQ14,AU14)","v":0},{"$f":"SUM(D14,H14,L14,P14,T14,X14,AB14,AF14,AJ14,AN14,AR14,AV14)","v":1},{"$f":"SUM(E14,I14,M14,Q14,U14,Y14,AC14,AG14,AK14,AO14,AS14,AW14)","v":0},{"$f":"SUM(F14,J14,Z14,AH14,N14,R14,V14,AD14,AL14,AP14,AT14,AX14)","v":0},{"$f":"SUM(AY14*7)","v":0},{"$f":"PRODUCT(AZ14*5)","v":5},{"$f":"PRODUCT(BA14*3)","v":0},{"$f":"PRODUCT(BB14*1)","v":0},{"$f":"SUM(BC14:BF14)","v":5},"9-10"]
[10,"Благовещенка ",null,null,null,null,null,null,null,null,null,null,null,null,null,1,null,null,null,null,null,null,null,null,null,null,null,null,null,null,null,null,null,null,null,null,null,null,null,null,null,null,null,null,null,null,null,null,null,null,{"$f":"SUM(C15,G15,K15,O15,S15,W15,AA15,AE15,AI15,AM15,AQ15,AU15)","v":0},{"$f":"SUM(D15,H15,L15,P15,T15,X15,AB15,AF15,AJ15,AN15,AR15,AV15)","v":1},{"$f":"SUM(E15,I15,M15,Q15,U15,Y15,AC15,AG15,AK15,AO15,AS15,AW15)","v":0},{"$f":"SUM(F15,J15,Z15,AH15,N15,R15,V15,AD15,AL15,AP15,AT15,AX15)","v":0},{"$f":"SUM(AY15*7)","v":0},{"$f":"PRODUCT(AZ15*5)","v":5},{"$f":"PRODUCT(BA15*3)","v":0},{"$f":"PRODUCT(BB15*1)","v":0},{"$f":"SUM(BC15:BF15)","v":5},"9-10"]
[11,"Зональный район",null,null,null,null,null,null,null,1,null,null,null,null,null,null,null,null,null,null,null,null,null,null,null,null,null,null,null,null,null,null,1,null,null,null,null,null,null,null,null,null,null,null,null,null,null,null,null,null,{"$f":"SUM(C16,G16,K16,O16,S16,W16,AA16,AE16,AI16,AM16,AQ16,AU16)","v":0},{"$f":"SUM(D16,H16,L16,P16,T16,X16,AB16,AF16,AJ16,AN16,AR16,AV16)","v":0},{"$f":"SUM(E16,I16,M16,Q16,U16,Y16,AC16,AG16,AK16,AO16,AS16,AW16)","v":1},{"$f":"SUM(F16,J16,Z16,AH16,N16,R16,V16,AD16,AL16,AP16,AT16,AX16)","v":1},{"$f":"SUM(AY16*7)","v":0},{"$f":"PRODUCT(AZ16*5)","v":0},{"$f":"PRODUCT(BA16*3)","v":3},{"$f":"PRODUCT(BB16*1)","v":1},{"$f":"SUM(BC16:BF16)","v":4},"11-13"]
[12,"Алейск",null,null,null,null,null,null,null,null,null,null,null,null,null,null,null,null,null,null,null,null,null,null,null,null,null,null,null,null,null,null,null,1,null,null,null,null,null,null,1,null,null,null,null,null,null,null,null,null,{"$f":"SUM(C17,G17,K17,O17,S17,W17,AA17,AE17,AI17,AM17,AQ17,AU17)","v":0},{"$f":"SUM(D17,H17,L17,P17,T17,X17,AB17,AF17,AJ17,AN17,AR17,AV17)","v":0},{"$f":"SUM(E17,I17,M17,Q17,U17,Y17,AC17,AG17,AK17,AO17,AS17,AW17)","v":1},{"$f":"SUM(F17,J17,Z17,AH17,N17,R17,V17,AD17,AL17,AP17,AT17,AX17)","v":1},{"$f":"SUM(AY17*7)","v":0},{"$f":"PRODUCT(AZ17*5)","v":0},{"$f":"PRODUCT(BA17*3)","v":3},{"$f":"PRODUCT(BB17*1)","v":1},{"$f":"SUM(BC17:BF17)","v":4},"11-13"]
[13,"Барнаул КСЕ\"Фаворит\"",null,null,null,null,null,null,null,null,null,null,1,null,null,null,null,null,null,null,null,null,null,null,null,1,null,null,null,null,null,null,null,null,null,null,null,null,null,null,null,null,null,null,null,null,null,null,null,null,{"$f":"SUM(C18,G18,K18,O18,S18,W18,AA18,AE18,AI18,AM18,AQ18,AU18)","v":0},{"$f":"SUM(D18,H18,L18,P18,T18,X18,AB18,AF18,AJ18,AN18,AR18,AV18)","v":0},{"$f":"SUM(E18,I18,M18,Q18,U18,Y18,AC18,AG18,AK18,AO18,AS18,AW18)","v":1},{"$f":"SUM(F18,J18,Z18,AH18,N18,R18,V18,AD18,AL18,AP18,AT18,AX18)","v":1},{"$f":"SUM(AY18*7)","v":0},{"$f":"PRODUCT(AZ18*5)","v":0},{"$f":"PRODUCT(BA18*3)","v":3},{"$f":"PRODUCT(BB18*1)","v":1},{"$f":"SUM(BC18:BF18)","v":4},"11-13"]
[14,"Яровое",null,null,null,null,null,null,null,null,null,null,null,null,null,null,null,null,null,null,null,null,null,null,null,null,null,null,null,null,null,null,null,null,null,null,1,null,null,null,null,null,null,null,null,null,null,null,null,null,{"$f":"SUM(C19,G19,K19,O19,S19,W19,AA19,AE19,AI19,AM19,AQ19,AU19)","v":0},{"$f":"SUM(D19,H19,L19,P19,T19,X19,AB19,AF19,AJ19,AN19,AR19,AV19)","v":0},{"$f":"SUM(E19,I19,M19,Q19,U19,Y19,AC19,AG19,AK19,AO19,AS19,AW19)","v":1},{"$f":"SUM(F19,J19,Z19,AH19,N19,R19,V19,AD19,AL19,AP19,AT19,AX19)","v":0},{"$f":"SUM(AY19*7)","v":0},{"$f":"PRODUCT(AZ19*5)","v":0},{"$f":"PRODUCT(BA19*3)","v":3},{"$f":"PRODUCT(BB19*1)","v":0},{"$f":"SUM(BC19:BF19)","v":3},"14-15"]
[15,"Красногрское",null,null,null,null,null,null,null,null,null,null,null,1,null,null,null,1,null,null,null,null,null,null,null,1,null,null,null,null,null,null,null,null,null,null,null,null,null,null,null,null,null,null,null,null,null,null,null,null,{"$f":"SUM(C20,G20,K20,O20,S20,W20,AA20,AE20,AI20,AM20,AQ20,AU20)","v":0},{"$f":"SUM(D20,H20,L20,P20,T20,X20,AB20,AF20,AJ20,AN20,AR20,AV20)","v":0},{"$f":"SUM(E20,I20,M20,Q20,U20,Y20,AC20,AG20,AK20,AO20,AS20,AW20)","v":0},{"$f":"SUM(F20,J20,Z20,AH20,N20,R20,V20,AD20,AL20,AP20,AT20,AX20)","v":3},{"$f":"SUM(AY20*7)","v":0},{"$f":"PRODUCT(AZ20*5)","v":0},{"$f":"PRODUCT(BA20*3)","v":0},{"$f":"PRODUCT(BB20*1)","v":3},{"$f":"SUM(BC20:BF20)","v":3},"14-15"]
[16,"Советский район",null,null,null,null,null,null,null,null,null,null,null,null,null,null,null,null,null,null,null,null,null,null,null,null,null,null,null,null,null,null,null,null,null,null,null,null,null,null,null,null,null,null,null,null,null,null,null,null,{"$f":"SUM(C21,G21,K21,O21,S21,W21,AA21,AE21,AI21,AM21,AQ21,AU21)","v":0},{"$f":"SUM(D21,H21,L21,P21,T21,X21,AB21,AF21,AJ21,AN21,AR21,AV21)","v":0},{"$f":"SUM(E21,I21,M21,Q21,U21,Y21,AC21,AG21,AK21,AO21,AS21,AW21)","v":0},{"$f":"SUM(F21,J21,Z21,AH21,N21,R21,V21,AD21,AL21,AP21,AT21,AX21)","v":0},{"$f":"SUM(AY21*7)","v":0},{"$f":"PRODUCT(AZ21*5)","v":0},{"$f":"PRODUCT(BA21*3)","v":0},{"$f":"PRODUCT(BB21*1)","v":0},{"$f":"SUM(BC21:BF21)","v":0},"16-19"]
[17,"Романовский район",null,null,null,null,null,null,null,null,null,null,null,null,null,null,null,null,null,null,null,null,null,null,null,null,null,null,null,null,null,null,null,null,null,null,null,null,null,null,null,null,null,null,null,null,null,null,null,null,{"$f":"SUM(C22,G22,K22,O22,S22,W22,AA22,AE22,AI22,AM22,AQ22,AU22)","v":0},{"$f":"SUM(D22,H22,L22,P22,T22,X22,AB22,AF22,AJ22,AN22,AR22,AV22)","v":0},{"$f":"SUM(E22,I22,M22,Q22,U22,Y22,AC22,AG22,AK22,AO22,AS22,AW22)","v":0},{"$f":"SUM(F22,J22,Z22,AH22,N22,R22,V22,AD22,AL22,AP22,AT22,AX22)","v":0},{"$f":"SUM(AY22*7)","v":0},{"$f":"PRODUCT(AZ22*5)","v":0},{"$f":"PRODUCT(BA22*3)","v":0},{"$f":"PRODUCT(BB22*1)","v":0},{"$f":"SUM(BC22:BF22)","v":0},"16-19"]
[18,"Барнаул Ирбис",null,null,null,null,null,null,null,null,null,null,null,null,null,null,null,null,null,null,null,null,null,null,null,null,null,null,null,null,null,null,null,null,null,null,null,null,null,null,null,null,null,null,null,null,null,null,null,null,{"$f":"SUM(C23,G23,K23,O23,S23,W23,AA23,AE23,AI23,AM23,AQ23,AU23)","v":0},{"$f":"SUM(D23,H23,L23,P23,T23,X23,AB23,AF23,AJ23,AN23,AR23,AV23)","v":0},{"$f":"SUM(E23,I23,M23,Q23,U23,Y23,AC23,AG23,AK23,AO23,AS23,AW23)","v":0},{"$f":"SUM(F23,J23,Z23,AH23,N23,R23,V23,AD23,AL23,AP23,AT23,AX23)","v":0},{"$f":"SUM(AY23*7)","v":0},{"$f":"PRODUCT(AZ23*5)","v":0},{"$f":"PRODUCT(BA23*3)","v":0},{"$f":"PRODUCT(BB23*1)","v":0},{"$f":"SUM(BC23:BF23)","v":0},"16-19"]
[19,"Алтайское",null,null,null,null,null,null,null,null,null,null,null,null,null,null,null,null,null,null,null,null,null,null,null,null,null,null,null,null,null,null,null,null,null,null,null,null,null,null,null,null,null,null,null,null,null,null,null,null,{"$f":"SUM(C24,G24,K24,O24,S24,W24,AA24,AE24,AI24,AM24,AQ24,AU24)","v":0},{"$f":"SUM(D24,H24,L24,P24,T24,X24,AB24,AF24,AJ24,AN24,AR24,AV24)","v":0},{"$f":"SUM(E24,I24,M24,Q24,U24,Y24,AC24,AG24,AK24,AO24,AS24,AW24)","v":0},{"$f":"SUM(F24,J24,Z24,AH24,N24,R24,V24,AD24,AL24,AP24,AT24,AX24)","v":0},{"$f":"SUM(AY24*7)","v":0},{"$f":"PRODUCT(AZ24*5)","v":0},{"$f":"PRODUCT(BA24*3)","v":0},{"$f":"PRODUCT(BB24*1)","v":0},{"$f":"SUM(BC24:BF24)","v":0},"16-19"]
[null,null,null,null,null,null,null,null,null,null,null,null,null,null,null,null,null,null,null,null,null,null,null,null,null,null,null,null,null,null,null,null,null,null,null,null,null,null,null,null,null,null,null,null,null,null,null,null,null,null,{"$f":"SUM(C25,G25,K25,O25,S25,W25,AA25,AE25,AI25,AM25,AQ25,AU25)","v":0},0,0,{"$f":"SUM(F25,J25,Z25,AH25,N25,R25,V25,AD25,AL25,AP25,AT25,AX25)","v":0},{"$f":"SUM(AY25*7)","v":0},{"$f":"PRODUCT(AZ25*5)","v":0},{"$f":"PRODUCT(BA25*3)","v":0},{"$f":"PRODUCT(BB25*1)","v":0},{"$f":"SUM(BC25:BF25)","v":0}]
[null,null,null,null,null,null,null,null,null,null,null,null,null,null,null,null,null,null,null,null,null,null,null,null,null,null,null,null,null,null,null,null,null,null,null,null,null,null,null,null,null,null,null,null,null,null,null,null,null,null,0,0,0,0,0,0,0,0,0]
[null,null,null,null,null,null,null,null,null,null,null,null,null,null,null,null,null,null,null,null,null,null,null,null,null,null,null,null,null,null,null,null,null,null,null,null,null,null,null,null,null,null,null,null,null,null,null,null,null,null,0,0,0,0,0,0,0,0,0]
[null,null,null,null,null,null,null,null,null,null,null,null,null,null,null,null,null,null,null,null,null,null,null,null,null,null,null,null,null,null,null,null,null,null,null,null,null,null,null,null,null,null,null,null,null,null,null,null,null,null,0,0,0,0,0,0,0,0,0]
[null,null,null,null,null,null,null,null,null,null,null,null,null,null,null,null,null,null,null,null,null,null,null,null,null,null,null,null,null,null,null,null,null,null,null,null,null,null,null,null,null,null,null,null,null,null,null,null,null,null,0,0,0,0,0,0,0,0,0]
[null,null,null,null,null,null,null,null,null,null,null,null,null,null,null,null,null,null,null,null,null,null,null,null,null,null,null,null,null,null,null,null,null,null,null,null,null,null,null,null,null,null,null,null,null,null,null,null,null,null,0,0,0,0,0,0,0,0,0]
[null,null,null,null,null,null,null,null,null,null,null,null,null,null,null,null,null,null,null,null,null,null,null,null,null,null,null,null,null,null,null,null,null,null,null,null,null,null,null,null,null,null,null,null,null,null,null,null,null,null,0,0,0,0,0,0,0,0,0]
[null,null,null,null,null,null,null,null,null,null,null,null,null,null,null,null,null,null,null,null,null,null,null,null,null,null,null,null,null,null,null,null,null,null,null,null,null,null,null,null,null,null,null,null,null,null,null,null,null,null,0,0,0,0,0,0,0,0,0]
[null,null,null,null,null,null,null,null,null,null,null,null,null,null,null,null,null,null,null,null,null,null,null,null,null,null,null,null,null,null,null,null,null,null,null,null,null,null,null,null,null,null,null,null,null,null,null,null,null,null,0,0,0,0,0,0,0,0,0]
[null,null,null,null,null,null,null,null,null,null,null,null,null,null,null,null,null,null,null,null,null,null,null,null,null,null,null,null,null,null,null,null,null,null,null,null,null,null,null,null,null,null,null,null,null,null,null,null,null,null,0,0,0,0,0,0,0,0,0]
[null,null,null,null,null,null,null,null,null,null,null,null,null,null,null,null,null,null,null,null,null,null,null,null,null,null,null,null,null,null,null,null,null,null,null,null,null,null,null,null,null,null,null,null,null,null,null,null,null,null,0,0,0,0,0,0,0,0,0]
[null,null,null,null,null,null,null,null,null,null,null,null,null,null,null,null,null,null,null,null,null,null,null,null,null,null,null,null,null,null,null,null,null,null,null,null,null,null,null,null,null,null,null,null,null,null,null,null,null,null,0,0,0,0,0,0,0,0,0]
[null,null,null,null,null,null,null,null,null,null,null,null,null,null,null,null,null,null,null,null,null,null,null,null,null,null,null,null,null,null,null,null,null,null,null,null,null,null,null,null,null,null,null,null,null,null,null,null,null,null,0,0,0,0,0,0,0,0,0]
[null,null,null,null,null,null,null,null,null,null,null,null,null,null,null,null,null,null,null,null,null,null,null,null,null,null,null,null,null,null,null,null,null,null,null,null,null,null,null,null,null,null,null,null,null,null,null,null,null,null,0,0,0,0,0,0,0,0,0]
[null,null,null,null,null,null,null,null,null,null,null,null,null,null,null,null,null,null,null,null,null,null,null,null,null,null,null,null,null,null,null,null,null,null,null,null,null,null,null,null,null,null,null,null,null,null,null,null,null,null,0,0,0,0,0,0,0,0,0]
[null,null,null,null,null,null,null,null,null,null,null,null,null,null,null,null,null,null,null,null,null,null,null,null,null,null,null,null,null,null,null,null,null,null,null,null,null,null,null,null,null,null,null,null,null,null,null,null,null,null,0,0,0,0,0,0,0,0,0]
[null,null,null,null,null,null,null,null,null,null,null,null,null,null,null,null,null,null,null,null,null,null,null,null,null,null,null,null,null,null,null,null,null,null,null,null,null,null,null,null,null,null,null,null,null,null,null,null,null,null,0,0,0,0,0,0,0,0,0]
[null,null,null,null,null,null,null,null,null,null,null,null,null,null,null,null,null,null,null,null,null,null,null,null,null,null,null,null,null,null,null,null,null,null,null,null,null,null,null,null,null,null,null,null,null,null,null,null,null,null,0,0,0,0,0,0,0,0,0]
[null,null,null,null,null,null,null,null,null,null,null,null,null,null,null,null,null,null,null,null,null,null,null,null,null,null,null,null,null,null,null,null,null,null,null,null,null,null,null,null,null,null,null,null,null,null,null,null,null,null,0,0,0,0,0,0,0,0,0]
[null,null,null,null,null,null,null,null,null,null,null,null,null,null,null,null,null,null,null,null,null,null,null,null,null,null,null,null,null,null,null,null,null,null,null,null,null,null,null,null,null,null,null,null,null,null,null,null,null,null,0,0,0,0,0,0,0,0,0]
[null,null,null,null,null,null,null,null,null,null,null,null,null,null,null,null,null,null,null,null,null,null,null,null,null,null,null,null,null,null,null,null,null,null,null,null,null,null,null,null,null,null,null,null,null,null,null,null,null,null,0,0,0,0,0,0,0,0,0]
[null,null,null,null,null,null,null,null,null,null,null,null,null,null,null,null,null,null,null,null,null,null,null,null,null,null,null,null,null,null,null,null,null,null,null,null,null,null,null,null,null,null,null,null,null,null,null,null,null,null,0,0,0,0,0,0,0,0,0]
[null,null,null,null,null,null,null,null,null,null,null,null,null,null,null,null,null,null,null,null,null,null,null,null,null,null,null,null,null,null,null,null,null,null,null,null,null,null,null,null,null,null,null,null,null,null,null,null,null,null,0,0,0,0,0,0,0,0,0]
[null,null,{"$f":"SUM(C6:C47)","v":1},1,1,0,1,1,2,2,1,1,2,2,1,1,1,2,1,1,2,2,1,1,2,2,1,1,2,1,1,1,2,2,1,1,1,0,1,1,2,2,0,0,0,0,0,0,0,0,10,10,17,15,70,50,51,15,186]
[]
[{"$f":"[1]реквизиты!$A$6","v":"Гл. судья, судья ВК"},null,null,null,null,null,null,null,null,{"$f":"[1]реквизиты!$G$6","v":"И.В.Димитриенко"},null,null,null,null,null,null,null,null,null,null,null,null,{"$f":"[1]реквизиты!$A$8","v":"Гл. секретарь, судья 1К"},null,null,null,null,null,null,null,null,null,null,null,null,null,null,null,null,null,null,null,null,null,null,null,{"$f":"[1]реквизиты!$G$8","v":"П.В.Шалюта"}]
[null,null,null,null,null,null,null,null,null,null,null,null,null,null,null,null,{"$f":"HYPERLINK([1]реквизиты!$G$7)","v":"/г.Бийск/"},null,null,null,null,null,null,null,null,null,null,null,null,null,null,null,null,null,null,null,null,null,null,null,null,null,null,null,null,null,null,null,null,null,null,null,null,null,null,null,{"$f":"HYPERLINK([1]реквизиты!$G$9)","v":"/г.Бийск/"}]

{"sheet":"девуш","index":1,"n_rows":51,"n_cols":60,"rows_kept":51,"cut":false,"hidden":false,"merged":[[0,0,0,59],[1,20,1,59],[2,2,2,19],[2,20,2,59],[3,0,4,0],[3,1,4,1],[3,2,3,5],[3,6,3,9],[3,10,3,13],[3,14,3,17],[3,18,3,21],[3,22,3,25],[3,26,3,29],[3,30,3,33],[3,34,3,37],[3,38,3,41],[3,59,4,59],[45,0,45,1],[46,0,46,1],[49,0,50,1],[49,22,50,41],[49,46,50,55],[3,42,3,45],[3,46,3,49],[3,50,3,53],[3,54,3,57],[3,58,4,58]]}
["ВСЕРОССИЙСКАЯ ФЕДЕРАЦИЯ САМБО"]
[null,null,"ПРОТОКОЛ КОМАНДНОГО ПЕРВЕНСТВА",null,null,null,null,null,null,null,null,null,null,null,null,null,null,null,null,null,{"$f":"[1]реквизиты!$A$2","v":"Краевые соревнования по самбо в зачёт ХХХIХ спартакиады спортивных школ среди юношей и девушек 2003-2004 г.р."}]
[null,null,"ДЕВУШКИ",null,null,null,null,null,null,null,null,null,null,null,null,null,null,null,null,null,{"$f":"[1]реквизиты!$A$3","v":"01-03 марта 2019г.                                              г.Бийск"}]
["№пп","Команда",38,null,null,null,41,null,null,null,44,null,null,null,48,null,null,null,52,null,null,null,56,null,null,null,60,null,null,null,65,null,null,null,70,null,null,null,"св70",null,null,null,null,null,null,null,null,null,null,null,"Вcего мест",null,null,null,"Очки",null,null,null,"Всего","Место"]
[null,null,1,2,3,5,1,2,3,5,1,2,3,5,1,2,3,5,1,2,3,5,1,2,3,5,1,2,3,5,1,2,3,5,1,2,3,5,1,2,3,5,1,2,3,5,1,2,3,5,1,2,3,5,"1м","2м","3м","5м"]
[1,"Бийск СШОР№3",null,null,null,null,null,null,null,null,null,null,null,null,null,null,1,1,1,null,null,null,null,null,1,null,null,null,1,1,null,null,null,null,1,null,null,null,null,null,null,null,null,null,null,null,null,null,null,null,{"$f":"SUM(C6,G6,K6,O6,S6,W6,AA6,AE6,AI6,AM6,AQ6,AU6)","v":2},{"$f":"SUM(D6,H6,L6,P6,T6,X6,AB6,AF6,AJ6,AN6,AR6,AV6)","v":0},{"$f":"SUM(E6,I6,M6,Q6,U6,Y6,AC6,AG6,AK6,AO6,AS6,AW6)","v":3},{"$f":"SUM(F6,J6,Z6,AH6,N6,R6,V6,AD6,AL6,AP6,AT6,AX6)","v":2},{"$f":"SUM(AY6*7)","v":14},{"$f":"PRODUCT(AZ6*5)","v":0},{"$f":"PRODUCT(BA6*3)","v":9},{"$f":"PRODUCT(BB6*1)","v":2},{"$f":"SUM(BC6:BF6)","v":25},"1"]
[2,"Алейск",null,1,null,null,1,null,null,null,null,null,null,null,null,1,null,null,null,null,null,null,null,null,null,null,null,null,null,null,null,null,null,null,null,null,null,null,null,null,null,null,null,null,null,null,null,null,null,null,1,2,0,0,7,10,0,0,17,"2"]
[3,"Барнаул СШОР \"Спарта\"",null,null,null,null,null,null,null,null,null,null,null,null,1,null,null,null,null,null,null,null,null,null,null,null,1,null,null,null,null,null,null,null,null,null,null,null,null,null,null,null,null,null,null,null,null,null,null,null,2,0,0,0,14,0,0,0,14,"3"]
[4,"Заринск МАУ \"Спорт\"",null,null,1,null,null,null,null,null,null,null,null,null,null,null,1,null,null,null,null,null,1,null,null,null,null,null,null,null,null,null,null,null,null,null,null,null,null,null,null,null,null,null,null,null,null,null,null,null,1,0,2,0,7,0,6,0,13,"4"]
[5,"Зональный район",null,null,1,null,null,null,null,null,null,null,null,null,null,null,null,null,null,1,null,null,null,null,1,1,null,null,null,null,null,null,null,null,null,null,null,null,null,null,null,null,null,null,null,null,null,null,null,null,0,1,2,1,0,5,6,1,12,"5"]
[6,"Барнаул КДЮСШ",null,null,null,null,null,null,null,null,1,null,null,null,null,null,null,null,null,null,1,null,null,null,null,null,null,null,null,null,null,null,null,null,null,null,null,null,null,null,null,null,null,null,null,null,null,null,null,null,1,0,1,0,7,0,3,0,10,"6"]
[7,"Славгород",null,null,null,null,null,null,null,null,null,null,null,null,null,null,null,1,null,null,null,null,null,null,null,null,null,null,null,null,1,null,null,null,null,null,null,null,null,null,null,null,null,null,null,null,null,null,null,null,1,0,0,1,7,0,0,1,8,"7"]
[8,"Шипуново",null,null,null,null,null,null,null,null,null,null,null,null,null,null,null,null,null,null,null,null,null,1,null,null,null,null,1,null,null,null,null,null,null,null,null,null,null,null,null,null,null,null,null,null,null,null,null,null,0,1,1,0,0,5,3,0,8,"8"]
[9,"Тальменка",1,null,null,null,null,null,null,null,null,null,null,null,null,null,null,null,null,null,null,null,null,null,null,null,null,null,null,null,null,null,null,null,null,null,null,null,null,null,null,null,null,null,null,null,null,null,null,null,1,0,0,0,7,0,0,0,7,"9"]
[10,"Яровое",null,null,null,null,null,null,null,null,null,null,null,null,null,null,null,null,null,null,null,null,null,null,null,null,null,1,null,null,null,null,null,null,null,null,null,null,null,null,null,null,null,null,null,null,null,null,null,null,0,1,0,0,0,5,0,null,5,"10"]
[11,"Барнаул СШОР\"Олимпия\"",null,null,null,null,null,null,null,null,null,null,null,null,null,null,null,null,null,null,1,1,null,null,null,null,null,null,null,null,null,null,null,null,null,null,null,null,null,null,null,null,null,null,null,null,null,null,null,null,0,0,1,1,0,0,3,{"$f":"PRODUCT(BB16*1)","v":1},4,"11"]
[12,"Барнаул СШ 10",null,null,null,null,null,null,null,null,null,null,null,null,null,null,null,null,null,null,null,null,null,null,null,null,null,null,null,1,null,null,null,null,null,null,null,null,null,null,null,null,null,null,null,null,null,null,null,null,0,0,0,1,0,0,0,{"$f":"PRODUCT(BB17*1)","v":1},1,"12-13"]
[13,"Советский район",null,null,null,null,null,null,null,null,null,null,null,null,null,null,null,null,null,null,null,null,null,null,null,1,null,null,null,null,null,null,null,null,null,null,null,null,null,null,null,null,null,null,null,null,null,null,null,null,0,0,0,1,0,0,0,{"$f":"PRODUCT(BB18*1)","v":1},1,"12-13"]
[14,null,null,null,null,null,null,null,null,null,null,null,null,null,null,null,null,null,null,null,null,null,null,null,null,null,null,null,null,null,null,null,null,null,null,null,null,null,null,null,null,null,null,null,null,null,null,null,null,null,{"$f":"SUM(C19,G19,K19,O19,S19,W19,AA19,AE19,AI19,AM19,AQ19,AU19)","v":0},{"$f":"SUM(D19,H19,L19,P19,T19,X19,AB19,AF19,AJ19,AN19,AR19,AV19)","v":0},{"$f":"SUM(E19,I19,M19,Q19,U19,Y19,AC19,AG19,AK19,AO19,AS19,AW19)","v":0},{"$f":"SUM(F19,J19,Z19,AH19,N19,R19,V19,AD19,AL19,AP19,AT19,AX19)","v":0},{"$f":"SUM(AY19*7)","v":0},{"$f":"PRODUCT(AZ19*5)","v":0},{"$f":"PRODUCT(BA19*3)","v":0},{"$f":"PRODUCT(BB19*1)","v":0},{"$f":"SUM(BC19:BF19)","v":0}]
[15,null,null,null,null,null,null,null,null,null,null,null,null,null,null,null,null,null,null,null,null,null,null,null,null,null,null,null,null,null,null,null,null,null,null,null,null,null,null,null,null,null,null,null,null,null,null,null,null,null,{"$f":"SUM(C20,G20,K20,O20,S20,W20,AA20,AE20,AI20,AM20,AQ20,AU20)","v":0},0,0,{"$f":"SUM(F20,J20,Z20,AH20,N20,R20,V20,AD20,AL20,AP20,AT20,AX20)","v":0},{"$f":"SUM(AY20*7)","v":0},{"$f":"PRODUCT(AZ20*5)","v":0},{"$f":"PRODUCT(BA20*3)","v":0},{"$f":"PRODUCT(BB20*1)","v":0},{"$f":"SUM(BC20:BF20)","v":0}]
[null,null,null,null,null,null,null,null,null,null,null,null,null,null,null,null,null,null,null,null,null,null,null,null,null,null,null,null,null,null,null,null,null,null,null,null,null,null,null,null,null,null,null,null,null,null,null,null,null,null,0,0,0,0,0,0,0,0,0]
[null,null,null,null,null,null,null,null,null,null,null,null,null,null,null,null,null,null,null,null,null,null,null,null,null,null,null,null,null,null,null,null,null,null,null,null,null,null,null,null,null,null,null,null,null,null,null,null,null,null,0,0,0,0,0,0,0,0,0]
[null,null,null,null,null,null,null,null,null,null,null,null,null,null,null,null,null,null,null,null,null,null,null,null,null,null,null,null,null,null,null,null,null,null,null,null,null,null,null,null,null,null,null,null,null,null,null,null,null,null,0,0,0,0,0,0,0,0,0]
[null,null,null,null,null,null,null,null,null,null,null,null,null,null,null,null,null,null,null,null,null,null,null,null,null,null,null,null,null,null,null,null,null,null,null,null,null,null,null,null,null,null,null,null,null,null,null,null,null,null,0,0,0,0,0,0,0,0,0]
[null,null,null,null,null,null,null,null,null,null,null,null,null,null,null,null,null,null,null,null,null,null,null,null,null,null,null,null,null,null,null,null,null,null,null,null,null,null,null,null,null,null,null,null,null,null,null,null,null,null,0,0,0,0,0,0,0,0,0]
[null,null,null,null,null,null,null,null,null,null,null,null,null,null,null,null,null,null,null,null,null,null,null,null,null,null,null,null,null,null,null,null,null,null,null,null,null,null,null,null,null,null,null,null,null,null,null,null,null,null,0,0,0,0,0,0,0,0,0]
[null,null,null,null,null,null,null,null,null,null,null,null,null,null,null,null,null,null,null,null,null,null,null,null,null,null,null,null,null,null,null,null,null,null,null,null,null,null,null,null,null,null,null,null,null,null,null,null,null,null,0,0,0,0,0,0,0,0,0]
[null,null,null,null,null,null,null,null,null,null,null,null,null,null,null,null,null,null,null,null,null,null,null,null,null,null,null,null,null,null,null,null,null,null,null,null,null,null,null,null,null,null,null,null,null,null,null,null,null,null,0,0,0,0,0,0,0,0,0]
[null,null,null,null,null,null,null,null,null,null,null,null,null,null,null,null,null,null,null,null,null,null,null,null,null,null,null,null,null,null,null,null,null,null,null,null,null,null,null,null,null,null,null,null,null,null,null,null,null,null,0,0,0,0,0,0,0,0,0]
[null,null,null,null,null,null,null,null,null,null,null,null,null,null,null,null,null,null,null,null,null,null,null,null,null,null,null,null,null,null,null,null,null,null,null,null,null,null,null,null,null,null,null,null,null,null,null,null,null,null,0,0,0,0,0,0,0,0,0]
[null,null,null,null,null,null,null,null,null,null,null,null,null,null,null,null,null,null,null,null,null,null,null,null,null,null,null,null,null,null,null,null,null,null,null,null,null,null,null,null,null,null,null,null,null,null,null,null,null,null,0,0,0,0,0,0,0,0,0]
[null,null,null,null,null,null,null,null,null,null,null,null,null,null,null,null,null,null,null,null,null,null,null,null,null,null,null,null,null,null,null,null,null,null,null,null,null,null,null,null,null,null,null,null,null,null,null,null,null,null,0,0,0,0,0,0,0,0,0]
[null,null,null,null,null,null,null,null,null,null,null,null,null,null,null,null,null,null,null,null,null,null,null,null,null,null,null,null,null,null,null,null,null,null,null,null,null,null,null,null,null,null,null,null,null,null,null,null,null,null,0,0,0,0,0,0,0,0,0]
[null,null,null,null,null,null,null,null,null,null,null,null,null,null,null,null,null,null,null,null,null,null,null,null,null,null,null,null,null,null,null,null,null,null,null,null,null,null,null,null,null,null,null,null,null,null,null,null,null,null,0,0,0,0,0,0,0,0,0]
[null,null,null,null,null,null,null,null,null,null,null,null,null,null,null,null,null,null,null,null,null,null,null,null,null,null,null,null,null,null,null,null,null,null,null,null,null,null,null,null,null,null,null,null,null,null,null,null,null,null,0,0,0,0,0,0,0,0,0]
[null,null,null,null,null,null,null,null,null,null,null,null,null,null,null,null,null,null,null,null,null,null,null,null,null,null,null,null,null,null,null,null,null,null,null,null,null,null,null,null,null,null,null,null,null,null,null,null,null,null,0,0,0,0,0,0,0,0,0]
[null,null,null,null,null,null,null,null,null,null,null,null,null,null,null,null,null,null,null,null,null,null,null,null,null,null,null,null,null,null,null,null,null,null,null,null,null,null,null,null,null,null,null,null,null,null,null,null,null,null,0,0,0,0,0,0,0,0,0]
[null,null,null,null,null,null,null,null,null,null,null,null,null,null,null,null,null,null,null,null,null,null,null,null,null,null,null,null,null,null,null,null,null,null,null,null,null,null,null,null,null,null,null,null,null,null,null,null,null,null,0,0,0,0,0,0,0,0,0]
[null,null,null,null,null,null,null,null,null,null,null,null,null,null,null,null,null,null,null,null,null,null,null,null,null,null,null,null,null,null,null,null,null,null,null,null,null,null,null,null,null,null,null,null,null,null,null,null,null,null,0,0,0,0,0,0,0,0,0]
[null,null,null,null,null,null,null,null,null,null,null,null,null,null,null,null,null,null,null,null,null,null,null,null,null,null,null,null,null,null,null,null,null,null,null,null,null,null,null,null,null,null,null,null,null,null,null,null,null,null,0,0,0,0,0,0,0,0,0]
[null,null,null,null,null,null,null,null,null,null,null,null,null,null,null,null,null,null,null,null,null,null,null,null,null,null,null,null,null,null,null,null,null,null,null,null,null,null,null,null,null,null,null,null,null,null,null,null,null,null,0,0,0,0,0,0,0,0,0]
[null,null,null,null,null,null,null,null,null,null,null,null,null,null,null,null,null,null,null,null,null,null,null,null,null,null,null,null,null,null,null,null,null,null,null,null,null,null,null,null,null,null,null,null,null,null,null,null,null,null,0,0,0,0,0,0,0,0,0]
[null,null,null,null,null,null,null,null,null,null,null,null,null,null,null,null,null,null,null,null,null,null,null,null,null,null,null,null,null,null,null,null,null,null,null,null,null,null,null,null,null,null,null,null,null,null,null,null,null,null,0,0,0,0,0,0,0,0,0]
[null,null,null,null,null,null,null,null,null,null,null,null,null,null,null,null,null,null,null,null,null,null,null,null,null,null,null,null,null,null,null,null,null,null,null,null,null,null,null,null,null,null,null,null,null,null,null,null,null,null,0,0,0,0,0,0,0,0,0]
[null,null,null,null,null,null,null,null,null,null,null,null,null,null,null,null,null,null,null,null,null,null,null,null,null,null,null,null,null,null,null,null,null,null,null,null,null,null,null,null,null,null,null,null,null,null,null,null,null,null,0,0,0,0,0,0,0,0,0]
[null,null,null,null,null,null,null,null,null,null,null,null,null,null,null,null,null,null,null,null,null,null,null,null,null,null,null,null,null,null,null,null,null,null,null,null,null,null,null,null,null,null,null,null,null,null,null,null,null,null,0,0,0,0,0,0,0,0,0]
[null,null,null,null,null,null,null,null,null,null,null,null,null,null,null,null,null,null,null,null,null,null,null,null,null,null,null,null,null,null,null,null,null,null,null,null,null,null,null,null,null,null,null,null,null,null,null,null,null,null,0,0,0,0,0,0,0,0,0]
[null,null,{"$f":"SUM(C6:C47)","v":1},1,2,0,1,0,0,0,1,0,0,0,1,1,2,2,1,1,2,1,1,1,2,2,1,1,2,2,1,0,0,0,1,0,0,0,0,0,0,0,0,0,0,0,0,0,0,0,9,5,10,7,63,25,30,7,125]
[]
["Гл. судья, судья ВК",null,null,null,null,null,null,null,null,{"$f":"[1]реквизиты!$G$6","v":"И.В.Димитриенко"},null,null,null,null,null,null,null,null,null,null,null,null,{"$f":"[1]реквизиты!$A$8","v":"Гл. секретарь, судья 1К"},null,null,null,null,null,null,null,null,null,null,null,null,null,null,null,null,null,null,null,null,null,null,null,{"$f":"[1]реквизиты!$G$8","v":"П.В.Шалюта"}]
[null,null,null,null,null,null,null,null,null,null,null,null,null,null,null,null,{"$f":"[1]реквизиты!$G$7","v":"/г.Бийск/"},null,null,null,null,null,null,null,null,null,null,null,null,null,null,null,null,null,null,null,null,null,null,null,null,null,null,null,null,null,null,null,null,null,null,null,null,null,null,null,{"$f":"[1]реквизиты!$G$9","v":"/г.Бийск/"}]